bitfinex-derivatives/quotes_ETHF0:USTF0_20240930
["timestamp","ask_amount","ask_price","bid_price","bid_amount"]
[1727704384912,7.0086,2630.8,2630.7,0.38014]
[1727704385112,9.49274052,2630.8,2630.7,0.38014]
[1727704388416,9.87267251,2630.8,2630.7,0.38014]
[1727704388617,9.49251073,2630.8,2630.7,0.38014]
[1727704389721,7.0086,2630.8,2630.7,0.38014]
[1727704390108,7.38873,2630.8,2630.7,0.38014]
[1727704390715,8.99550675,2630.8,2630.7,0.38014]
[1727704391009,9.37563675,2630.8,2630.7,0.38014]
[1727704392012,8.99550675,2630.8,2630.7,0.38014]
[1727704392411,9.37563675,2630.8,2630.7,0.38014]
[1727704394214,8.99550675,2630.8,2630.3,1.41099]
[1727704394417,4.69795248,2630.5,2630.4,0.38018]
[1727704395022,5.63895248,2630.5,2630.4,0.38018]
[1727704395322,5.63895248,2630.5,2630.3,0.4605]
[1727704395518,6.13566998,2630.5,2630.4,0.38018]
[1727704395819,6.5188,2630.5,2630.4,0.38018]
[1727704396117,6.5188,2630.5,2630.0,0.4765]
[1727704396118,0.3802,2630.3,2630.2,0.38021]
[1727704396320,2.37,2630.3,2630.2,0.38021]
[1727704396518,6.5518,2630.3,2630.2,0.38021]
[1727704396716,6.1716,2630.3,2630.0,0.4765]
[1727704397019,6.1716,2630.3,2629.9,0.4594]
[1727704397020,0.38026,2629.9,2629.6,0.38029]
[1727704397212,6.5141,2629.8,2629.5,0.4765]
[1727704397416,6.5141,2629.8,2629.4,0.4604]
[1727704397417,2.37,2629.6,2629.1,0.456]
[1727704397618,2.37,2629.6,2629.2,0.4765]
[1727704397815,3.2078,2629.5,2629.3,0.38034]
[1727704398120,4.69711906,2629.5,2629.4,0.38033]
[1727704398324,3.2078,2629.5,2629.3,0.38034]
[1727704398622,4.69711906,2629.5,2629.2,0.4765]
[1727704398818,1.48931906,2629.4,2629.3,0.38034]
[1727704399421,3.2078,2629.5,2629.2,0.4765]
[1727704399422,4.69711906,2629.5,2629.2,0.4765]
[1727704399815,2.37,2629.4,2629.2,0.4765]
[1727704400020,4.23965906,2629.4,2628.7,0.38043]
[1727704400219,5.5778,2629.2,2628.8,0.4777]
[1727704400726,6.0351,2629.2,2628.8,0.4777]
[1727704401720,5.5778,2628.9,2628.8,0.4777]
[1727704401919,5.5778,2628.9,2628.0,5.34252384]
[1727704401920,5.5778,2628.9,2628.0,3.2078]
[1727704402217,5.5778,2628.9,2627.9,0.99638163]
[1727704402218,2.37,2628.3,2628.2,0.4749]
[1727704402819,5.5778,2628.3,2628.1,0.4641]
[1727704403026,5.5778,2628.3,2627.9,0.4749]
[1727704403223,2.37,2628.1,2627.9,0.4749]
[1727704404423,2.37,2628.1,2627.6,0.4641]
[1727704404625,3.2078,2628.0,2627.6,0.4641]
[1727704409619,3.2078,2627.7,2627.6,0.4641]
[1727704409823,3.58834,2628.0,2627.6,0.4641]
[1727704410229,5.5778,2627.7,2627.4,0.4749]
[1727704413326,3.2078,2627.7,2627.6,0.38059]
[1727704413530,3.2078,2627.7,2627.6,2.75059]
[1727704413726,3.2078,2627.7,2627.6,6.55619]
[1727704413919,3.2078,2627.7,2627.6,0.38059]
[1727704414327,3.2078,2627.7,2627.6,4.18619]
[1727704415935,3.2078,2627.7,2627.6,0.38059]
[1727704416534,3.2078,2627.7,2627.6,4.18619]
[1727704416733,3.2078,2627.7,2627.6,0.38059]
[1727704416940,3.2078,2627.7,2627.6,4.18619]
[1727704417141,3.2078,2628.1,2628.0,0.38052]
[1727704417641,5.5778,2628.1,2628.0,0.38052]
[1727704418829,5.5778,2628.1,2627.6,0.38059]
[1727704419024,5.5778,2628.1,2628.0,0.38053]
[1727704419834,5.5778,2628.1,2627.9,0.38054]
[1727704420139,5.5778,2628.1,2627.6,0.38059]
[1727704420434,5.5778,2628.1,2627.7,0.38057]
[1727704420435,2.37,2627.9,2627.7,0.38057]
[1727704420937,2.37,2627.9,2627.6,0.38058]
[1727704421334,2.75055,2627.9,2627.5,0.38059]
[1727704421640,3.2078,2627.8,2627.4,0.4749]
[1727704421839,3.58837,2627.8,2627.4,0.8555]
[1727704422040,3.2078,2627.8,2627.5,0.3806]
[1727704422241,3.58836,2627.8,2627.5,0.3806]
[1727704422537,3.2078,2627.8,2627.4,0.4749]
[1727704423137,2.75058,2627.7,2627.3,0.38062]
[1727704423445,3.2832,2627.7,2627.2,0.4734]
[1727704423745,3.2832,2627.7,2627.5,0.3806]
[1727704424241,0.4513,2627.7,2627.6,0.38059]
[1727704424544,3.2078,2627.8,2627.7,0.38057]
[1727704426135,3.2078,2627.8,2627.7,0.83937]
[1727704426543,3.2078,2627.8,2627.7,4.64497]
[1727704426940,3.2078,2627.8,2627.7,10.64497]
[1727704427537,3.2078,2627.8,2627.7,4.64497]
[1727704428546,3.2078,2627.8,2627.7,10.64497]
[1727704428734,3.2078,2627.8,2627.7,4.64497]
[1727704430942,3.2078,2627.8,2627.7,0.83937]
[1727704431147,2.8245,2628.3,2627.7,0.83937]
[1727704431148,3.2078,2628.1,2628.0,0.38053]
[1727704431344,3.2078,2628.4,2628.0,0.38053]
[1727704431539,3.2078,2628.4,2628.3,0.38049]
[1727704432547,5.5778,2628.4,2628.3,0.38049]
[1727704432944,5.5778,2628.4,2628.2,0.85439]
[1727704433143,5.5778,2628.4,2628.3,0.38049]
[1727704433845,5.5778,2628.4,2627.7,3.32143]
[1727704433846,5.5778,2628.4,2627.5,2.16949]
[1727704434154,0.8729,2628.5,2627.5,2.16949]
[1727704434155,2.37,2627.9,2627.8,0.38056]
[1727704434449,5.5778,2628.1,2627.9,0.38053]
[1727704434846,5.5778,2628.1,2628.0,0.38053]
[1727704435146,3.2078,2628.4,2628.2,0.38049]
[1727704435354,3.2078,2628.4,2628.3,0.38049]
[1727704436646,3.2078,2628.4,2628.3,10.18529]
[1727704436845,3.2078,2628.4,2628.3,4.18529]
[1727704437049,3.2078,2628.4,2628.3,10.18529]
[1727704437238,3.2078,2628.4,2628.3,4.18529]
[1727704438945,3.2078,2628.4,2628.3,0.38049]
[1727704439344,3.6619,2628.4,2628.3,0.38049]
[1727704442650,3.6619,2628.4,2628.0,0.896]
[1727704442948,3.6619,2628.4,2628.3,0.38049]
[1727704444050,3.6619,2628.4,2628.2,0.38049]
[1727704444452,3.6619,2628.4,2628.3,0.38049]
[1727704445045,3.6619,2628.4,2628.2,0.38049]
[1727704445248,3.6619,2628.4,2628.3,0.38049]
[1727704447453,3.6619,2628.4,2628.0,1.89238163]
[1727704447649,2.37,2628.3,2628.2,0.3805]
[1727704450652,3.6619,2628.4,2628.3,0.38049]
[1727704451449,4.04237,2628.4,2628.2,0.38049]
[1727704451768,4.04237,2628.4,2628.3,0.38049]
[1727704451769,3.6619,2628.4,2628.3,0.38049]
[1727704452059,0.38049,2628.3,2628.1,0.38051]
[1727704452259,2.37,2628.1,2628.0,0.38053]
[1727704454453,5.5778,2628.1,2628.0,0.38053]
[1727704457564,3.2078,2628.1,2628.0,0.38053]
[1727704461565,0.4541,2628.4,2628.0,3.8048]
[1727704461764,0.4457,2628.5,2628.4,0.38047]
[1727704466070,3.2078,2628.6,2628.5,0.38046]
[1727704466363,0.4456,2628.7,2628.6,0.38044]
[1727704467565,4.32911906,2628.8,2628.6,0.38044]
[1727704467774,0.4698,2628.8,2628.7,0.38043]
[1727704471165,2.8398,2628.8,2628.7,0.38043]
[1727704471360,4.79261906,2628.8,2628.6,0.38043]
[1727704472260,4.79261906,2628.8,2628.7,0.38043]
[1727704473273,4.79261906,2628.8,2628.3,1.37686163]
[1727704473274,0.38046,2628.6,2628.3,1.37686163]
[1727704473470,4.69674385,2628.4,2628.3,0.38048]
[1727704473664,4.69674385,2628.4,2628.2,0.38049]
[1727704473982,4.76944385,2628.3,2628.2,0.38049]
[1727704474275,4.76944385,2628.3,2628.1,0.38051]
[1727704474276,3.2805,2628.3,2628.1,0.38051]
[1727704474479,1.48884446,2628.2,2628.0,0.38053]
[1727704474775,2.37,2628.0,2627.7,0.99638163]
[1727704474968,0.4506,2627.9,2627.8,0.38056]
[1727704475282,3.2861,2627.9,2627.8,0.38056]
[1727704475976,3.2861,2627.9,2627.7,0.38057]
[1727704476166,4.77494446,2627.9,2627.7,0.38057]
[1727704476469,3.2078,2627.8,2627.5,1.42888163]
[1727704476674,3.6434,2627.8,2627.6,0.38058]
[1727704476872,2.37,2627.7,2627.5,0.4325]
[1727704477067,2.37,2627.7,2627.5,0.8131]
[1727704477268,2.37,2627.7,2627.5,0.4325]
[1727704477468,2.37,2627.7,2627.5,0.8131]
[1727704477668,2.37,2627.7,2627.5,0.4325]
[1727704477875,2.37,2627.7,2627.6,0.38059]
[1727704478068,2.37,2627.7,2627.5,0.8131]
[1727704478479,2.37,2627.7,2627.5,0.4325]
[1727704478676,2.37,2627.7,2627.3,0.38062]
[1727704479173,5.5778,2627.4,2627.3,0.38063]
[1727704479878,5.5778,2627.4,2627.1,0.4549]
[1727704480077,5.5778,2627.4,2626.9,1.37706163]
[1727704480078,2.37,2627.2,2626.9,1.37706163]
[1727704480269,2.37,2627.0,2626.9,0.38068]
[1727704480678,2.37,2627.0,2626.8,0.3807]
[1727704480972,2.37,2627.0,2626.9,0.38069]
[1727704481174,3.2078,2627.1,2627.0,0.38068]
[1727704482166,3.2078,2627.1,2626.9,0.38069]
[1727704482167,7.0142,2627.1,2626.9,0.38069]
[1727704482481,2.37,2626.9,2626.8,0.38071]
[1727704482773,3.2078,2627.1,2627.0,0.38068]
[1727704482979,5.5778,2627.1,2626.4,0.99638163]
[1727704483176,2.37,2626.8,2626.4,1.90578163]
[1727704483479,2.37,2626.8,2626.7,0.38072]
[1727704486066,2.37,2626.8,2626.4,0.9094]
[1727704486270,0.4285,2626.7,2626.6,0.38073]
[1727704486471,0.8692,2626.7,2626.6,0.38073]
[1727704487879,0.4285,2626.7,2626.6,0.38073]
[1727704490773,2.37,2626.8,2626.7,0.38072]
[1727704495584,2.37,2626.8,2626.4,0.9094]
[1727704495781,2.75071,2626.8,2626.4,0.9094]
[1727704495981,2.37,2626.8,2626.7,0.38072]
[1727704496290,2.75071,2626.8,2626.7,0.38072]
[1727704496494,2.37,2626.8,2626.7,0.38072]
[1727704499789,2.75071,2626.8,2626.6,0.38073]
[1727704499990,5.5778,2626.7,2626.4,0.4699]
[1727704500191,2.37,2626.5,2626.4,0.85066]
[1727704501389,3.2078,2626.7,2626.6,0.38073]
[1727704501390,5.5778,2626.7,2626.6,0.38073]
[1727704501787,3.2078,2626.7,2626.6,0.38073]
[1727704502391,3.2078,2626.7,2626.2,3.2078]
[1727704502392,5.5778,2626.7,2626.2,3.2078]
[1727704502696,5.5778,2626.7,2626.5,0.38074]
[1727704502697,3.58852,2626.7,2626.5,0.38074]
[1727704502995,0.445,2626.6,2626.5,0.38075]
[1727704503901,2.815,2626.6,2626.5,0.38075]
[1727704504397,2.815,2626.6,2626.4,0.38076]
[1727704504592,2.37,2626.5,2626.4,0.38076]
[1727704505084,2.37,2626.5,2626.3,0.4531]
[1727704505291,2.37,2626.5,2626.4,0.38076]
[1727704505694,2.37,2626.5,2626.3,0.83387]
[1727704505899,2.37,2626.5,2626.4,0.38076]
[1727704508397,5.5778,2626.7,2626.3,0.4531]
[1727704508593,5.5778,2626.7,2626.6,0.38073]
[1727704509999,6.0226,2626.7,2626.6,0.38073]
[1727704511525,15.8298,2626.7,2626.0,0.9049]
[1727704511822,5.5778,2626.1,2626.0,0.38082]
[1727704512033,2.37,2626.1,2626.0,0.38082]
[1727704512323,5.5778,2626.1,2626.0,0.38082]
[1727704512927,6.0246,2626.1,2626.0,0.38082]
[1727704513117,6.0246,2626.1,2625.6,0.4571]
[1727704513319,2.37,2625.8,2625.7,0.38086]
[1727704513524,2.37,2625.8,2625.6,0.38087]
[1727704514029,2.8114,2625.8,2625.7,0.38086]
[1727704514225,6.0192,2625.8,2625.6,0.38087]
[1727704515530,6.0192,2625.8,2625.2,4.16014]
[1727704515531,3.8088,2625.7,2625.2,0.38092]
[1727704515829,2.37,2625.3,2625.2,0.38092]
[1727704516726,3.2078,2625.4,2625.3,0.38092]
[1727704517540,3.2078,2625.4,2625.2,0.38094]
[1727704517735,2.37,2625.3,2625.2,0.38094]
[1727704518330,2.37,2625.3,2625.0,0.4563]
[1727704518637,2.37,2625.3,2625.2,0.38094]
[1727704519527,3.2078,2625.4,2625.3,0.38092]
[1727704520731,3.2078,2625.4,2625.0,0.9524]
[1727704520930,0.4481,2625.6,2625.0,0.38097]
[1727704520931,5.5778,2625.1,2625.0,0.38097]
[1727704521431,6.0351,2625.1,2625.0,0.38097]
[1727704523330,6.0351,2625.1,2624.5,1.40949]
[1727704523523,6.0351,2625.1,2625.0,0.38097]
[1727704524334,6.0351,2625.1,2624.6,3.98857914]
[1727704524537,4.04606,2625.1,2624.9,0.38098]
[1727704524738,2.37,2625.0,2624.9,0.38098]
[1727704525245,3.6651,2625.1,2625.0,0.38097]
[1727704530939,6.0351,2625.1,2625.0,0.38097]
[1727704531344,0.95242,2625.0,2624.1,0.95272]
[1727704531636,2.37,2624.4,2624.3,0.38107]
[1727704531836,2.75105,2624.4,2624.3,0.38107]
[1727704532031,5.9977,2624.4,2623.5,4.16074]
[1727704532228,2.37,2623.9,2623.8,0.82904]
[1727704532428,2.37,2624.1,2624.0,0.38111]
[1727704532632,0.4301,2624.3,2624.2,0.38108]
[1727704532633,2.37,2624.3,2624.2,0.38108]
[1727704533034,3.2078,2624.7,2624.3,4.19147]
[1727704533229,0.38099,2624.9,2624.7,0.38101]
[1727704533433,2.37,2624.8,2624.2,4.29271995]
[1727704533629,2.37,2624.8,2624.1,4.58454]
[1727704533630,2.37,2624.5,2624.4,0.38104]
[1727704534743,5.5778,2624.5,2623.7,3.2078]
[1727704534942,2.37,2624.3,2623.7,0.95287]
[1727704535144,0.4283,2624.2,2624.1,0.3811]
[1727704539242,5.5778,2624.5,2623.8,1.3063]
[1727704539442,6.0391,2624.5,2624.3,0.38106]
[1727704539747,6.42014,2624.5,2624.2,0.38107]
[1727704539948,6.42014,2624.5,2624.3,0.4295]
[1727704540248,6.42014,2624.5,2624.3,0.81057]
[1727704541050,6.42014,2624.5,2624.4,0.38105]
[1727704541250,6.0391,2624.5,2624.3,0.4295]
[1727704541747,6.0391,2624.5,2624.4,0.38105]
[1727704542148,6.42014,2624.5,2624.4,0.38105]
[1727704542347,6.0391,2624.5,2624.4,0.38105]
[1727704542956,6.42014,2624.5,2624.4,0.38105]
[1727704543652,6.0391,2624.5,2624.4,0.38105]
[1727704544050,3.6691,2624.5,2624.4,0.38105]
[1727704544350,0.4613,2624.5,2624.4,0.38105]
[1727704544556,0.4192,2624.7,2624.6,0.38102]
[1727704544851,4.0582,2624.7,2624.6,0.38102]
[1727704545445,3.639,2624.7,2624.6,0.38102]
[1727704545644,6.009,2624.7,2624.6,0.38102]
[1727704546553,2.37,2624.9,2624.4,0.4396]
[1727704546772,2.8012,2624.9,2624.8,0.381]
[1727704547065,2.37,2624.9,2624.8,0.381]
[1727704547249,3.2078,2625.0,2624.8,0.381]
[1727704547448,0.8755,2625.3,2625.1,0.38095]
[1727704547651,0.8755,2625.3,2625.2,0.38094]
[1727704548060,0.4312,2625.3,2625.2,0.38094]
[1727704549244,3.2078,2625.4,2625.3,0.38092]
[1727704549654,3.2078,2625.4,2625.3,4.18972]
[1727704549950,0.4577,2625.8,2625.7,0.38086]
[1727704550350,0.4198,2626.1,2626.0,0.38082]
[1727704550546,2.7898,2626.1,2626.0,0.38082]
[1727704551652,2.37,2626.1,2626.0,0.38082]
[1727704551948,3.6655,2626.2,2626.1,0.38081]
[1727704552749,3.2078,2626.2,2626.1,0.38081]
[1727704553157,3.2078,2626.2,2626.1,4.18881]
[1727704553355,3.2078,2626.2,2626.1,0.38081]
[1727704553654,3.2078,2626.2,2626.1,4.18881]
[1727704555050,3.2078,2626.2,2626.1,0.38081]
[1727704555669,3.2078,2626.2,2626.1,4.18881]
[1727704556256,0.4424,2626.5,2626.1,3.808]
[1727704556461,0.4424,2626.5,2626.2,0.4272]
[1727704556767,0.4424,2626.5,2626.4,0.38076]
[1727704557171,2.8124,2626.5,2626.3,0.38077]
[1727704557655,2.8124,2626.5,2626.4,0.38076]
[1727704558057,0.38076,2626.4,2626.2,0.80798]
[1727704558257,2.75078,2626.3,2626.2,0.4272]
[1727704558455,2.37,2626.3,2626.2,0.80799]
[1727704558664,5.5778,2626.3,2626.2,0.4272]
[1727704558867,5.5778,2626.3,2626.2,0.80799]
[1727704560562,3.2078,2626.3,2626.2,0.80799]
[1727704562064,3.2078,2626.3,2626.2,4.61599]
[1727704562467,0.4424,2626.5,2626.2,4.2352]
[1727704562657,0.4424,2626.5,2626.4,0.38076]
[1727704568862,0.01,2626.9,2626.8,0.38071]
[1727704571081,0.01,2626.9,2626.8,4.18791]
[1727704571383,0.39069,2626.9,2626.8,0.38071]
[1727704571582,0.01,2626.9,2626.3,0.435]
[1727704571771,0.38071,2626.8,2626.7,0.38071]
[1727704571972,0.38071,2626.8,2626.7,0.38072]
[1727704572572,0.38072,2626.7,2626.6,0.38073]
[1727704572767,3.58852,2626.7,2626.6,0.38073]
[1727704573781,3.6546,2626.7,2626.6,0.38073]
[1727704575167,0.4468,2626.7,2626.6,0.38073]
[1727704575370,3.6546,2626.7,2626.6,0.38073]
[1727704575571,0.4468,2626.7,2626.6,0.38073]
[1727704575773,0.4485,2626.8,2626.7,0.38072]
[1727704576170,0.01,2626.9,2626.6,0.4494]
[1727704576371,0.01,2626.9,2626.8,0.38071]
[1727704580977,0.39069,2626.9,2626.8,0.38071]
[1727704581871,0.01,2626.9,2626.8,0.38071]
[1727704583481,0.39069,2626.9,2626.8,0.38071]
[1727704583681,3.2178,2626.9,2626.8,0.38071]
[1727704584075,3.59849,2626.9,2626.8,0.38071]
[1727704584483,0.39069,2626.9,2626.8,0.38071]
[1727704586285,3.59849,2626.9,2626.8,0.38071]
[1727704586584,0.39069,2626.9,2626.8,0.38071]
[1727704586979,0.01,2626.9,2626.8,0.38071]
[1727704587175,0.39069,2626.9,2626.8,0.38071]
[1727704587685,0.01,2626.9,2626.8,0.38071]
[1727704588079,0.39069,2626.9,2626.8,0.38071]
[1727704589376,0.38072,2626.8,2626.7,0.38071]
[1727704589675,0.38072,2626.7,2626.6,0.38073]
[1727704589873,0.83212,2626.7,2626.6,0.38073]
[1727704590379,0.4514,2626.7,2626.6,0.38073]
[1727704590576,0.3907,2626.9,2626.8,0.38071]
[1727704590780,0.01,2626.9,2626.8,0.38071]
[1727704590979,3.2078,2627.5,2626.8,16.63]
[1727704591178,4.58949,2627.9,2627.3,2.37]
[1727704591379,0.4303,2627.4,2627.1,2.37]
[1727704591581,0.4303,2627.4,2627.3,0.38063]
[1727704591978,0.81092,2627.4,2627.2,0.38064]
[1727704592179,3.2078,2627.3,2627.2,0.38065]
[1727704592385,0.8621,2627.4,2627.3,0.38063]
[1727704592684,0.8621,2627.4,2626.9,1.38163]
[1727704592885,1.24272,2627.4,2626.9,1.38163]
[1727704593086,0.8621,2627.4,2626.8,4.56676]
[1727704593284,0.8621,2627.4,2626.9,0.95173]
[1727704593480,0.38063,2627.3,2626.9,0.95173]
[1727704593684,0.38063,2627.3,2627.1,0.38065]
[1727704593887,1.24273,2627.4,2627.2,0.38065]
[1727704594080,0.38064,2627.3,2627.1,0.38065]
[1727704594588,0.8621,2627.4,2626.9,0.4428]
[1727704594781,0.8621,2627.4,2627.2,0.38064]
[1727704594782,0.38064,2627.3,2627.2,0.38064]
[1727704594981,1.24273,2627.4,2627.2,0.38064]
[1727704595285,0.8621,2627.4,2627.0,2.37]
[1727704595482,0.8621,2627.4,2627.3,0.38063]
[1727704596282,0.8621,2627.4,2626.9,0.4428]
[1727704596488,0.8621,2627.4,2627.3,0.38063]
[1727704597089,0.4303,2627.4,2627.3,0.38063]
[1727704597293,0.4303,2627.4,2627.3,2.75063]
[1727704598091,0.4303,2627.4,2627.3,0.38063]
[1727704598388,0.38068,2627.0,2626.9,0.4428]
[1727704598598,1.48884446,2627.1,2626.7,0.38071]
[1727704598788,0.38071,2626.8,2626.5,0.38074]
[1727704599088,0.38072,2626.7,2626.4,0.4527]
[1727704599294,0.4503,2626.7,2626.4,0.83346]
[1727704599586,0.4503,2626.7,2626.4,0.83345]
[1727704599787,0.4503,2626.7,2626.5,0.38074]
[1727704599989,0.4503,2626.7,2626.4,0.83346]
[1727704599990,0.83102,2626.7,2626.4,0.83346]
[1727704600193,3.2078,2626.6,2625.8,4.20418163]
[1727704600387,3.2078,2626.6,2626.1,0.3808]
[1727704600388,0.38076,2626.5,2626.1,0.3808]
[1727704600590,1.25177,2626.4,2626.1,4.13350365]
[1727704600789,1.25177,2626.4,2626.0,0.83011]
[1727704601181,0.871,2626.4,2626.0,0.4493]
[1727704601386,0.871,2626.4,2626.1,0.3808]
[1727704601688,0.871,2626.4,2626.0,0.4493]
[1727704601985,0.871,2626.4,2626.2,0.38079]
[1727704602588,0.871,2626.4,2626.0,0.4493]
[1727704602788,0.871,2626.4,2626.1,0.3808]
[1727704603894,0.871,2626.4,2626.0,2.8193]
[1727704604095,0.871,2626.4,2626.2,0.38078]
[1727704604293,0.871,2626.4,2626.1,0.3808]
[1727704604591,0.871,2626.4,2626.2,0.38079]
[1727704605181,0.871,2626.4,2626.1,0.3808]
[1727704605795,0.871,2626.4,2626.0,0.83011]
[1727704606089,0.38078,2626.3,2626.0,0.83011]
[1727704606685,1.25177,2626.4,2626.1,0.38081]
[1727704607291,3.2078,2626.3,2626.0,0.4493]
[1727704607483,3.2078,2626.3,2625.8,2.37]
[1727704607685,0.4277,2626.2,2626.1,0.38081]
[1727704609387,3.2078,2626.3,2625.8,2.37]
[1727704609693,3.2078,2626.3,2626.2,0.38079]
[1727704611794,3.2078,2626.3,2626.2,0.81529]
[1727704612884,3.2078,2626.3,2626.2,0.38079]
[1727704613091,3.6644,2626.3,2626.2,0.38079]
[1727704614596,4.04518,2626.3,2626.2,0.38079]
[1727704614794,3.6644,2626.3,2626.2,0.38079]
[1727704618696,3.2078,2626.3,2626.2,0.38079]
[1727704619303,0.4368,2626.4,2626.3,0.38078]
[1727704620090,3.6282,2626.7,2626.4,0.95192]
[1727704620299,3.6282,2626.7,2626.3,4.18798]
[1727704620300,4.0763,2626.7,2626.6,0.38073]
[1727704622198,4.0763,2626.7,2626.2,0.8897]
[1727704622699,4.0763,2626.7,2626.6,0.38073]
[1727704625695,4.45703,2626.7,2626.3,0.95195]
[1727704626006,4.45703,2626.7,2626.6,0.38073]
[1727704627912,4.0763,2626.7,2626.3,0.95195]
[1727704628108,4.45703,2626.7,2626.6,0.38073]
[1727704630507,0.38075,2626.6,2626.5,0.38074]
[1727704631005,4.45703,2626.7,2626.6,0.38073]
[1727704634012,0.38075,2626.6,2626.5,0.38074]
[1727704634905,5.56514446,2626.7,2626.6,0.38073]
[1727704635102,5.94586446,2626.7,2626.6,0.38073]
[1727704635408,5.56514446,2626.7,2626.6,0.38073]
[1727704635598,5.94586446,2626.7,2626.6,0.38073]
[1727704635998,5.56514446,2626.7,2626.6,0.38073]
[1727704636405,5.94586446,2626.7,2626.6,0.38073]
[1727704639113,0.38075,2626.6,2626.5,0.38073]
[1727704640705,5.94586446,2626.7,2626.6,0.38073]
[1727704641207,5.56514446,2626.7,2626.2,2.8227]
[1727704641411,0.38075,2626.6,2626.5,0.38074]
[1727704641613,5.94092531,2626.7,2626.6,0.38073]
[1727704641813,5.94091531,2626.7,2626.6,0.38073]
[1727704642005,3.2078,2626.7,2626.6,6.55793]
[1727704642706,3.2078,2626.7,2626.6,7.00503]
[1727704643109,3.2078,2626.7,2626.6,8.00141163]
[1727704643307,1.92709531,2627.1,2626.6,7.62068163]
[1727704643498,1.92709531,2627.1,2627.0,0.38068]
[1727704643812,1.92709531,2627.1,2626.6,7.02128163]
[1727704644010,1.92709531,2627.1,2626.9,0.38069]
[1727704644201,1.48389531,2627.0,2626.9,0.38069]
[1727704644399,1.48389531,2627.0,2626.7,0.99638163]
[1727704644611,0.38071,2626.8,2626.7,0.38072]
[1727704644815,1.48389531,2626.8,2626.6,0.82783]
[1727704645008,1.48389531,2626.8,2626.5,0.4528]
[1727704645009,0.4226,2626.7,2626.4,1.37713163]
[1727704645216,5.52963531,2626.6,2626.4,0.4455]
[1727704645508,2.32182531,2626.6,2626.5,0.38075]
[1727704646104,1.94109531,2626.6,2626.5,0.38075]
[1727704647408,0.4572,2626.6,2626.5,0.38075]
[1727704647603,1.94314828,2626.6,2626.5,0.38075]
[1727704648009,0.4572,2626.6,2626.5,0.38075]
[1727704648308,1.48591784,2626.6,2626.5,0.38075]
[1727704648706,1.48591784,2626.7,2626.6,0.38073]
[1727704649501,1.98525846,2626.8,2626.4,0.4455]
[1727704649707,1.48595217,2626.6,2626.4,0.4455]
[1727704650109,1.48596258,2626.6,2626.5,0.38075]
[1727704650323,1.48596258,2626.7,2626.6,0.38073]
[1727704650910,5.11636258,2626.9,2626.8,0.38071]
[1727704651111,1.48596258,2626.9,2626.8,0.38071]
[1727704653515,0.38068,2627.0,2626.8,3.8072]
[1727704653516,1.48596258,2627.0,2626.8,3.8072]
[1727704653817,1.48596258,2627.0,2626.9,0.38069]
[1727704654217,1.86664258,2627.0,2626.9,0.38069]
[1727704654411,1.48596258,2627.0,2626.9,0.38069]
[1727704656511,3.8064,2627.0,2626.8,0.3807]
[1727704656711,6.42213405,2626.9,2626.8,0.38071]
[1727704657009,0.38071,2626.8,2626.7,0.38071]
[1727704657515,6.42212251,2626.9,2626.5,1.39787]
[1727704657716,0.4457,2626.7,2626.6,0.38073]
[1727704658719,1.93085621,2626.7,2626.6,0.38073]
[1727704659715,0.4457,2626.7,2626.6,0.38073]
[1727704660115,1.93100474,2626.7,2626.6,0.38073]
[1727704662220,0.4457,2626.7,2626.6,0.38073]
[1727704662811,0.4457,2626.7,2626.5,0.446]
[1727704663018,1.48530474,2626.6,2626.4,0.38076]
[1727704663211,0.38075,2626.5,2626.4,0.38075]
[1727704663423,2.30855474,2626.5,2626.4,0.38075]
[1727704663619,1.92780474,2626.5,2626.2,1.43068163]
[1727704663827,1.92780474,2626.5,2626.2,0.4343]
[1727704663828,1.94580474,2626.4,2626.2,0.4343]
[1727704664121,1.94580474,2626.4,2626.3,0.38078]
[1727704664314,1.48530474,2626.4,2626.3,2.75078]
[1727704664515,0.4457,2626.7,2626.3,2.75078]
[1727704664516,1.93100474,2626.7,2626.3,4.52793097]
[1727704664716,1.93100474,2626.7,2626.6,0.38073]
[1727704664924,0.4457,2626.7,2626.6,0.38073]
[1727704665123,1.48530474,2626.8,2626.7,0.38072]
[1727704666726,5.11100474,2626.9,2626.8,0.38071]
[1727704667217,3.6257,2626.9,2626.8,0.38071]
[1727704667421,5.11100474,2626.9,2626.8,0.38071]
[1727704668219,3.6257,2626.9,2626.8,0.38071]
[1727704668918,5.11100474,2626.9,2626.8,0.38071]
[1727704669118,5.11100474,2626.9,2626.6,1.43234034]
[1727704669319,1.48599174,2626.8,2626.7,0.38072]
[1727704669532,0.38071,2626.8,2626.7,0.38072]
[1727704669720,5.60582251,2626.9,2626.8,0.38071]
[1727704670920,3.6257,2626.9,2626.8,0.38071]
[1727704671226,5.11171202,2626.9,2626.8,0.38071]
[1727704673618,1.90391202,2626.9,2626.8,4.18791]
[1727704673923,5.11171202,2626.9,2626.8,4.18791]
[1727704674123,0.4179,2626.9,2626.8,4.18791]
[1727704676530,1.48601202,2627.1,2626.8,3.8072]
[1727704676730,2.36011202,2627.2,2626.9,2.37]
[1727704676926,1.91461202,2627.2,2627.1,2.75066]
[1727704677132,4.69381202,2627.3,2627.1,2.37]
[1727704677339,3.2078,2627.3,2627.2,0.38065]
[1727704678334,0.4455,2627.4,2627.3,0.38063]
[1727704684232,0.4455,2627.4,2627.1,2.37]